Workbook

Sheet COSTI DI RISTRUTTURAZIONE
B1: FOGLIO DI LAVORO COSTI RISTRUTTURAZIONE CUCINA
B3: Categoria | C3: Articoli | D3: Quantità | E3: Costo stimato | F3: Costo effettivo | G3: Costo stimato totale | H3: Costo effettivo totale
B4: Mobili | C4: Mobili base: Modulare standard (q.tà in metri lineari) | D4: 25 | E4: € 5.00 | G4: =Dati[[#This Row],[Quantità]]*Dati[[#This Row],[Costo stimato]] -> € 125 | H4: =Dati[[#This Row],[Quantità]]*Dati[[#This Row],[Costo effettivo]] -> € 0
B5: Mobili | C5: Pensili: Modulare standard (q.tà in metri lineari) | D5: 25 | E5: € 3.50 | G5: =Dati[[#This Row],[Quantità]]*Dati[[#This Row],[Costo stimato]] -> € 88 | H5: =Dati[[#This Row],[Quantità]]*Dati[[#This Row],[Costo effettivo]] -> € 0
B6: Elettrodomestici per pulizia | C6: Lavastoviglie: Standard | D6: 1 | E6: € 250.00 | G6: =Dati[[#This Row],[Quantità]]*Dati[[#This Row],[Costo stimato]] -> € 250 | H6: =Dati[[#This Row],[Quantità]]*Dati[[#This Row],[Costo effettivo]] -> € 0
B7: Elettrodomestici per pulizia | C7: Tritarifiuti: Standard | D7: 1 | E7: € 175.00 | G7: =Dati[[#This Row],[Quantità]]*Dati[[#This Row],[Costo stimato]] -> € 175 | H7: =Dati[[#This Row],[Quantità]]*Dati[[#This Row],[Costo effettivo]] -> € 0
B8: Elettrodomestici per cottura | C8: Fornello: Da incasso, standard | D8: 1 | E8: € 375.00 | G8: =Dati[[#This Row],[Quantità]]*Dati[[#This Row],[Costo stimato]] -> € 375 | H8: =Dati[[#This Row],[Quantità]]*Dati[[#This Row],[Costo effettivo]] -> € 0
B9: Elettrodomestici per cottura | C9: Microonde: Standard | D9: 1 | E9: € 300.00 | G9: =Dati[[#This Row],[Quantità]]*Dati[[#This Row],[Costo stimato]] -> € 300 | H9: =Dati[[#This Row],[Quantità]]*Dati[[#This Row],[Costo effettivo]] -> € 0
B10: Piani di lavoro | C10: Solid surface (quantità in metri lineari) | D10: 23 | E10: € 10.00 | G10: =Dati[[#This Row],[Quantità]]*Dati[[#This Row],[Costo stimato]] -> € 230 | H10: =Dati[[#This Row],[Quantità]]*Dati[[#This Row],[Costo effettivo]] -> € 0
B11: Porte | C11: Per interni: Impiallacciato | D11: 1 | E11: € 65.00 | G11: =Dati[[#This Row],[Quantità]]*Dati[[#This Row],[Costo stimato]] -> € 65 | H11: =Dati[[#This Row],[Quantità]]*Dati[[#This Row],[Costo effettivo]] -> € 0
B12: Extra | C12: Extra: Acqua calda immediata, standard | D12: 1 | E12: € 120.00 | G12: =Dati[[#This Row],[Quantità]]*Dati[[#This Row],[Costo stimato]] -> € 120 | H12: =Dati[[#This Row],[Quantità]]*Dati[[#This Row],[Costo effettivo]] -> € 0
B13: Extra | C13: Extra: Dispenser di sapone | D13: 1 | E13: € 40.00 | G13: =Dati[[#This Row],[Quantità]]*Dati[[#This Row],[Costo stimato]] -> € 40 | H13: =Dati[[#This Row],[Quantità]]*Dati[[#This Row],[Costo effettivo]] -> € 0
B14: Rubinetti | C14: Rubinetto: A leva, Standard | D14: 1 | E14: € 130.00 | G14: =Dati[[#This Row],[Quantità]]*Dati[[#This Row],[Costo stimato]] -> € 130 | H14: =Dati[[#This Row],[Quantità]]*Dati[[#This Row],[Costo effettivo]] -> € 0
B15: Pavimento | C15: Laminato (quantità in metri quadrati) | D15: 165 | E15: € 3.50 | G15: =Dati[[#This Row],[Quantità]]*Dati[[#This Row],[Costo stimato]] -> € 578 | H15: =Dati[[#This Row],[Quantità]]*Dati[[#This Row],[Costo effettivo]] -> € 0
B16: Elettrodomestici per lavaggio | C16: Lavatrice: Standard | D16: 1 | E16: € 500.00 | G16: =Dati[[#This Row],[Quantità]]*Dati[[#This Row],[Costo stimato]] -> € 500 | H16: =Dati[[#This Row],[Quantità]]*Dati[[#This Row],[Costo effettivo]] -> € 0
B17: Elettrodomestici per lavaggio | C17: Asciugatrice: Standard | D17: 1 | E17: € 375.00 | G17: =Dati[[#This Row],[Quantità]]*Dati[[#This Row],[Costo stimato]] -> € 375 | H17: =Dati[[#This Row],[Quantità]]*Dati[[#This Row],[Costo effettivo]] -> € 0
B18: Illuminazione | C18: Illuminazione: Faretti incassati | D18: 4 | E18: € 35.00 | G18: =Dati[[#This Row],[Quantità]]*Dati[[#This Row],[Costo stimato]] -> € 140 | H18: =Dati[[#This Row],[Quantità]]*Dati[[#This Row],[Costo effettivo]] -> € 0
B19: Frigoriferi | C19: Frigorifero: Esterno, Deluxe | D19: 1 | E19: € 1,200.00 | G19: =Dati[[#This Row],[Quantità]]*Dati[[#This Row],[Costo stimato]] -> € 1,200 | H19: =Dati[[#This Row],[Quantità]]*Dati[[#This Row],[Costo effettivo]] -> € 0
B20: Lavelli | C20: Acciaio inossidabile a doppia vasca, Deluxe | D20: 1 | E20: € 125.00 | G20: =Dati[[#This Row],[Quantità]]*Dati[[#This Row],[Costo stimato]] -> € 125 | H20: =Dati[[#This Row],[Quantità]]*Dati[[#This Row],[Costo effettivo]] -> € 0
B21: Ventilazione | C21: Cappa: Aspirante, Standard | D21: 1 | E21: € 180.00 | G21: =Dati[[#This Row],[Quantità]]*Dati[[#This Row],[Costo stimato]] -> € 180 | H21: =Dati[[#This Row],[Quantità]]*Dati[[#This Row],[Costo effettivo]] -> € 0
B22: Pareti | C22: Pannello di rivestimento (quantità in metri quadrati) | D22: 70 | E22: € 2.00 | G22: =Dati[[#This Row],[Quantità]]*Dati[[#This Row],[Costo stimato]] -> € 140 | H22: =Dati[[#This Row],[Quantità]]*Dati[[#This Row],[Costo effettivo]] -> € 0
B23: Finestre | C23: Scorrevoli | D23: 2 | E23: € 120.00 | G23: =Dati[[#This Row],[Quantità]]*Dati[[#This Row],[Costo stimato]] -> € 240 | H23: =Dati[[#This Row],[Quantità]]*Dati[[#This Row],[Costo effettivo]] -> € 0
B24: Altro | G24: =Dati[[#This Row],[Quantità]]*Dati[[#This Row],[Costo stimato]] -> € 0 | H24: =Dati[[#This Row],[Quantità]]*Dati[[#This Row],[Costo effettivo]] -> € 0
B25: Totale | E25: =SUBTOTAL(109,Dati[Costo stimato]) -> € 4,014.00 | F25: =SUBTOTAL(109,Dati[Costo effettivo]) -> € 0.00 | G25: =SUBTOTAL(109,Dati[Costo stimato totale]) -> € 5,375.00 | H25: =SUBTOTAL(109,Dati[Costo effettivo totale]) -> € 0.00
B26: Subtotale | G26: =SUBTOTAL(109,Dati[Costo stimato totale]) -> € 5,375.00 | H26: =SUBTOTAL(109,Dati[Costo effettivo totale]) -> € 0.00
B27: Costi imprevisti, aggiungere il 30% | G27: =G26*0.3 -> € 1,612.50 | H27: =H26*0.3 -> € 0.00
B28: Totale | G28: =SUM(G26:G27) -> € 6,987.50 | H28: =SUM(H26:H27) -> € 0.00
